﻿Department family,Entity,Date,Expense type,Expense area,Supplier,Transaction number,Amount,VAT registration number
Dept of Health,MHRA,01/11/2023,Assets Under Construction - Contract Services,Corporate,ADT Fire And Security Plc,53417217,"47,433.10",413633086
Dept of Health,MHRA,01/11/2023,Professional Memberships,Digital and Technology,Gartner UK Limited,20127063a,"67,320.00",635878884
Dept of Health,MHRA,01/11/2023,Chemicals and Reagents,Healthcare Quality and Access,LGC Ltd,51130018,"49,973.93",674056721
Dept of Health,MHRA,06/11/2023,Assets Under Construction - Plant & Equipment,"Scientific, Research and Innovation",Beckman Coulter United Kingdom Ltd,1567314,"102,384.83",918561309
Dept of Health,MHRA,06/11/2023,Assets Under Construction - Plant & Equipment,"Scientific, Research and Innovation",Beckman Coulter United Kingdom Ltd,1567342,"44,190.48",918561309
Dept of Health,MHRA,06/11/2023,Application Services and Maintenance,Safety and Surveillance,Cyber-Duck Ltd,10744,"88,545.36",798776533
Dept of Health,MHRA,06/11/2023,Assets Under Construction - Contract Services,Corporate,Enbloc Ltd,2790,"95,731.56",768254789
Dept of Health,MHRA,06/11/2023,IT Security,Safety and Surveillance,NCC Group Security Services Ltd,00107913,"43,200.00",732334556
Dept of Health,MHRA,06/11/2023,Help desk and end user support,Digital and Technology,XMA Limited,LE96352,"80,202.00",115091937
Dept of Health,MHRA,08/11/2023,Miscellaneous Costs,Healthcare Quality and Access,Brunel University London,5018551,"249,066.00",223518191
Dept of Health,MHRA,08/11/2023,Accommodation Service Charge 10SC,Corporate,Government Property Agency,00000001/26828,"25,866.67",888801080
Dept of Health,MHRA,08/11/2023,Gas,Corporate,TotalEnergies,3007623949,"40,450.68",689638949
Dept of Health,MHRA,08/11/2023,Gas,Corporate,TotalEnergies,272137970/22 A,"-113,370.87",689638949
Dept of Health,MHRA,08/11/2023,Gas,Corporate,TotalEnergies,272137970/22 B,"49,234.36",689638949
Dept of Health,MHRA,08/11/2023,Gas,Corporate,TotalEnergies,286134656/22 A,"-55,974.69",689638949
Dept of Health,MHRA,08/11/2023,Gas,Corporate,TotalEnergies,286134656/22 B,"55,985.15",689638949
Dept of Health,MHRA,08/11/2023,Gas,Corporate,TotalEnergies,298365303/23 A,"-65,550.32",689638949
Dept of Health,MHRA,08/11/2023,Gas,Corporate,TotalEnergies,298365303/23 B,"65,561.13",689638949
Dept of Health,MHRA,08/11/2023,Gas,Corporate,TotalEnergies,310306595/23,"28,459.07",689638949
Dept of Health,MHRA,08/11/2023,Contracted Out Services Miscellaneous,Enablement,Veracity OSI UK Limited,INV-00001731,"48,672.00",178448953
Dept of Health,MHRA,08/11/2023,Contracted Out Services Miscellaneous,Digital and Technology,Veracity OSI UK Limited,INV-00001732,"69,654.00",178448953
Dept of Health,MHRA,08/11/2023,"Service, Integration & Management - Enterprise Architecture",Digital and Technology,Veracity OSI UK Limited,INV-00001733,"68,496.00",178448953
Dept of Health,MHRA,08/11/2023,Contracted Out Services Miscellaneous,Digital and Technology,Veracity OSI UK Limited,INV-00001735,"57,156.00",178448953
Dept of Health,MHRA,08/11/2023,Contracted Out Services Miscellaneous,Digital and Technology,Veracity OSI UK Limited,INV-00001763,"42,924.00",178448953
Dept of Health,MHRA,08/11/2023,Contracted Out Services Miscellaneous,Digital and Technology,Veracity OSI UK Limited,INV-00001765,"53,856.00",178448953
Dept of Health,MHRA,08/11/2023,Contracted Out Services Miscellaneous,Digital and Technology,Veracity OSI UK Limited,INV-00001767,"69,804.00",178448953
Dept of Health,MHRA,08/11/2023,Contracted Out Services Miscellaneous,Enablement,Veracity OSI UK Limited,INV-00001768,"50,076.00",178448953
Dept of Health,MHRA,13/11/2023,Application Services and Maintenance,Digital and Technology,Accenture (UK) Limited,3003635532,"76,633.00",788629066
Dept of Health,MHRA,13/11/2023,Security,Corporate,CIS Security Limited,0000062922,"60,919.75",206193092
Dept of Health,MHRA,13/11/2023,Infrastructure Services and Maintenance,Safety and Surveillance,Fat Media Limited,226-030,"31,200.00",280066907
Dept of Health,MHRA,13/11/2023,Infrastructure Services and Maintenance,Digital and Technology,Trustmarque Solutions Limited,2372905,"163,565.96",394593601
Dept of Health,MHRA,13/11/2023,"Service, Integration & Management - Enterprise Architecture",Digital and Technology,Veracity OSI UK Limited,INV-00001766,"77,688.00",178448953
Dept of Health,MHRA,20/11/2023,Contracted Out Services Miscellaneous,Digital and Technology,Adatis Consulting Limited,16324,"28,680.00",887761165
Dept of Health,MHRA,20/11/2023,Assets Under Construction - Clearing Account,Digital and Technology,Cloud Kubed Ltd,INV-0147,"284,820.00",383555470
Dept of Health,MHRA,20/11/2023,Building Maintenance & Repairs,Corporate,Commercial Services UK Ltd,INV-1685,"29,326.80",130597616
Dept of Health,MHRA,20/11/2023,Application Services and Maintenance,Safety and Surveillance,Cyber-Duck Ltd,10773,"101,709.90",798776533
Dept of Health,MHRA,20/11/2023,Assets Under Construction - Contract Services,Corporate,Enbloc Ltd,2807,"27,920.04",768254789
Dept of Health,MHRA,20/11/2023,Infrastructure Services and Maintenance,Safety and Surveillance,Fat Media Limited,226-029,"25,105.20",280066907
Dept of Health,MHRA,20/11/2023,Infrastructure Services and Maintenance,Safety and Surveillance,Fat Media Limited,226-043,"60,000.00",280066907
Dept of Health,MHRA,20/11/2023,Management Consultancy,"Scientific, Research and Innovation",Frazer-Nash Consultancy Ltd,PJIN0018035,"25,122.92",564103956
Dept of Health,MHRA,20/11/2023,Software & Licences,Digital and Technology,Insight Networking Solutions,2100753330,"75,135.76",746075129
Dept of Health,MHRA,20/11/2023,Assets Under Construction - Clearing Account,Digital and Technology,LORENZ Life Sciences Ltd,2023-06703,"84,000.00",656678972
Dept of Health,MHRA,20/11/2023,Software & Licences,Digital and Technology,Netcall Technology Limited,CLINV000838,"37,389.60",865241323
Dept of Health,MHRA,20/11/2023,Assets Under Construction - Other Costs,Corporate,Parker Air Conditioning Ltd,INV26418,"172,898.40",506700965
Dept of Health,MHRA,20/11/2023,Contracted Out Services Miscellaneous,Safety and Surveillance,Red Ant Digital Ltd,INV-09414,"60,000.00",123388322
Dept of Health,MHRA,20/11/2023,Contracted Out Services Miscellaneous,Safety and Surveillance,Red Ant Digital Ltd,INV-09415,"60,000.00",123388322
Dept of Health,MHRA,20/11/2023,Contracted Out Services Miscellaneous,Safety and Surveillance,Red Ant Digital Ltd,INV-09416,"120,000.00",123388322
Dept of Health,MHRA,20/11/2023,Assets Under Construction - Plant & Equipment,"Scientific, Research and Innovation",SciQuip Ltd,0000052184,"103,898.40",781775487
Dept of Health,MHRA,20/11/2023,Miscellaneous Costs,Healthcare Quality and Access,Woodnewton Associates Limited,2312 / MH23,"30,000.00",906426040
Dept of Health,MHRA,22/11/2023,Contracted Out Services Miscellaneous,Safety and Surveillance,Red Ant Digital Ltd,INV-09419,"270,000.00",123388322
Dept of Health,MHRA,22/11/2023,Contracted Out Services Miscellaneous,Digital and Technology,Redrock Consulting Ltd,11532,"121,950.00",862247715
Dept of Health,MHRA,22/11/2023,Contracted Out Services Miscellaneous,Digital and Technology,Redrock Consulting Ltd,11537,"235,951.80",862247715
Dept of Health,MHRA,27/11/2023,Assets Under Construction - Clearing Account,Digital and Technology,Accenture (UK) Limited,3003636461,"84,262.72",788629066
Dept of Health,MHRA,27/11/2023,IT Database Subscriptions,Safety and Surveillance,In Practice System Ltd,456196,"66,906.84",735898770
Dept of Health,MHRA,27/11/2023,Gas,Corporate,TotalEnergies,319783887/23,"45,622.08",689638949
Dept of Health,MHRA,27/11/2023,Infrastructure Services and Maintenance,Safety and Surveillance,Trustmarque Solutions Limited,2373687,"273,014.36",394593601
Dept of Health,MHRA,27/11/2023,Contracted Out Services Miscellaneous,Digital and Technology,Veracity OSI UK Limited,INV-00001730,"66,834.00",178448953
Dept of Health,MHRA,27/11/2023,Help desk and end user support,Digital and Technology,XMA Limited,LF13340,"80,200.80",115091937
Dept of Health,MHRA,29/11/2023,Application Services and Maintenance,Digital and Technology,Accenture (UK) Limited,3003636721,"293,659.82",788629066
Dept of Health,MHRA,29/11/2023,Software & Licences,Digital and Technology,Acquia,SI-64422,"29,700.89",
Dept of Health,MHRA,29/11/2023,IT Consultancy,Safety and Surveillance,Cloud Kubed Ltd,INV-0153,"32,400.00",383555470
Dept of Health,MHRA,29/11/2023,Contracted Out Services Miscellaneous,Safety and Surveillance,Commonwealth Informatics Inc,GBP146,"25,388.44",
Dept of Health,MHRA,29/11/2023,Electricity,Corporate,EDF Energy,000017154209,"145,837.51",523041202
Dept of Health,MHRA,29/11/2023,Contracted Out Services Miscellaneous,Digital and Technology,NTT Data UK Ltd,121547060,"74,658.00",159334590
Dept of Health,MHRA,29/11/2023,Lab Equipment Repairs and Maintenance,Corporate,Thermo Electron Ltd,9112183999,"73,362.80",827900029
